fUSD/lending_fUSD_20240409
["ID","MTS","AMOUNT","RATE_DAILY","PERIOD"]
[322010445,1712685064348,-500.0,0.00020273,2]
[322010446,1712685064357,-886.66,0.00020273,2]
[322010447,1712685064367,-500.0,0.00020273,2]
[322010448,1712685064377,-500.0,0.00020273,2]
[322010449,1712685064387,-319.11,0.00020273,2]
[322010450,1712685064396,-500.0,0.00020273,2]
[322010451,1712685064406,-500.0,0.00020273,2]
[322010452,1712685064415,-1369.54,0.00020273,2]
[322010453,1712685064425,-500.0,0.00020273,2]
[322010454,1712685064440,-1513.26,0.00020273,2]
[322010455,1712685064450,-500.0,0.00020273,2]
[322010456,1712685064460,-1078.79,0.00020273,2]
[322010457,1712685064469,-3637.63,0.00020273,2]
[322010458,1712685064480,-1135.58,0.00020273,2]
[322010459,1712685064489,-975.77,0.00020273,2]
[322010460,1712685064498,-500.0,0.00020273,2]
[322010461,1712685064508,-719.06,0.00020273,2]
[322010462,1712685064517,-613.65,0.00020273,2]
[322010463,1712685064527,-500.0,0.00020273,2]
[322010464,1712685064536,-500.0,0.00020273,2]
[322010465,1712685064546,-500.0,0.00020273,2]
[322010466,1712685064555,-500.0,0.00020273,2]
[322010467,1712685064565,-4161.63,0.00020273,2]
[322010468,1712685064574,-500.0,0.00020273,2]
[322010469,1712685064584,-383.28,0.00020273,2]
[322010470,1712685064593,-508.36,0.00020273,2]
[322010471,1712685064603,-1872.54,0.00020273,2]
[322010472,1712685064613,-2607.78,0.00020273,2]
[322010473,1712685064622,-500.0,0.00020273,2]
[322010474,1712685064631,-743.78,0.00020273,2]
[322010475,1712685064640,-500.0,0.00020273,2]
[322010476,1712685064649,-500.0,0.00020273,2]
[322010477,1712685064659,-277.352923,0.00020274,2]
[322010478,1712685064726,-5572.90028845,0.00020355,2]
[322010479,1712685064737,-311.56462363,0.00020363,2]
[322010480,1712685064746,-754.56,0.00020378,2]
[322010481,1712685064755,-1000.0,0.00020382,2]
[322010482,1712685064765,-200.0,0.00020382,2]
[322010483,1712685064773,-15095.7671179,0.00020383,2]
[322010484,1712685064783,-3760.94825741,0.00020383,2]
[322010485,1712685064792,-180.00657047,0.00020397,2]
[322010486,1712685064802,-1002.7971,0.00020399,2]
[322010487,1712685064811,-156.90567095,0.00020404,2]
[322010488,1712685064820,-481.88,0.00020421,2]
[322010489,1712685064829,-804.0,0.00020465,2]
[322010490,1712685064838,-544.0,0.00020465,2]
[322010491,1712685064847,-554.0,0.00020493,2]
[322010492,1712685064856,-252.79,0.000205,2]
[322010493,1712685064866,-500.0,0.000205,2]
[322010494,1712685064879,-150.0,0.000205,2]
[322010495,1712685064888,-466.2821486,0.00020536,2]
[322010496,1712685064897,-1248.3266545,0.00020536,2]
[322010497,1712685064908,-5572.90028845,0.00020536,2]
[322010498,1712685064918,-311.56462363,0.00020542,2]
[322010499,1712685064928,-65251.19782989,0.00020544,2]
[322010500,1712685064938,-261.86179938,0.00020545,2]
[322010501,1712685064947,-500.0,0.00020547,2]
[322010502,1712685064957,-181.21244015,0.00020547,2]
[322010503,1712685064967,-432.53,0.00020547,2]
[322010504,1712685064976,-500.0,0.00020547,2]
[322010505,1712685064985,-500.0,0.00020547,2]
[322010506,1712685064994,-500.0,0.00020547,2]
[322010507,1712685065004,-500.0,0.00020547,2]
[322010508,1712685065014,-679.14,0.00020547,2]
[322010509,1712685065024,-500.0,0.00020547,2]
[322010510,1712685065034,-500.0,0.00020547,2]
[322010511,1712685065045,-500.0,0.00020547,2]
[322010512,1712685065056,-500.0,0.00020547,2]
[322010513,1712685065067,-508.26,0.00020547,2]
[322010514,1712685065077,-684.14,0.00020547,2]
[322010515,1712685065088,-331.6,0.00020547,2]
[322010516,1712685065098,-633.57,0.00020547,2]
[322010517,1712685065109,-500.0,0.00020547,2]
[322010518,1712685065119,-500.0,0.00020547,2]
[322010519,1712685065129,-500.0,0.00020547,2]
[322010520,1712685065139,-500.0,0.00020547,2]
[322010521,1712685065149,-575.47,0.00020547,2]
[322010522,1712685065158,-500.0,0.00020547,2]
[322010523,1712685065168,-592.54,0.00020547,2]
[322010524,1712685065181,-500.0,0.00020547,2]
[322010525,1712685065192,-500.0,0.00020547,2]
[322010526,1712685065202,-500.0,0.00020547,2]
[322010527,1712685065212,-524.99,0.00020547,2]
[322010528,1712685065223,-500.0,0.00020547,2]
[322010529,1712685065233,-752.81,0.00020547,2]
[322010530,1712685065243,-500.0,0.00020547,2]
[322010531,1712685065254,-500.0,0.00020547,2]
[322010532,1712685065265,-500.0,0.00020547,2]
[322010533,1712685065274,-500.0,0.00020547,2]
[322010534,1712685065285,-649.11,0.00020547,2]
[322010535,1712685065294,-500.0,0.00020547,2]
[322010536,1712685065304,-500.0,0.00020547,2]
[322010537,1712685065314,-500.0,0.00020547,2]
[322010538,1712685065324,-530.71,0.00020547,2]
[322010539,1712685065334,-500.0,0.00020547,2]
[322010540,1712685065344,-551.47,0.00020547,2]
[322010541,1712685065354,-500.0,0.00020547,2]
[322010542,1712685065363,-584.11,0.00020547,2]
[322010543,1712685065373,-703.73,0.00020547,2]
[322010544,1712685065383,-500.0,0.00020547,2]
[322010545,1712685065394,-500.0,0.00020547,2]
[322010546,1712685065404,-473.75,0.00020547,2]
[322010547,1712685065415,-500.0,0.00020547,2]
[322010548,1712685065426,-500.0,0.00020547,2]
[322010549,1712685065440,-500.0,0.00020547,2]
[322010550,1712685065450,-500.0,0.00020547,2]
[322010551,1712685065460,-500.0,0.00020547,2]
[322010552,1712685065470,-500.0,0.00020547,2]
[322010553,1712685065479,-500.0,0.00020547,2]
[322010554,1712685065489,-500.0,0.00020547,2]
[322010555,1712685065498,-608.99,0.00020547,2]
[322010556,1712685065508,-973.81,0.00020547,2]
[322010557,1712685065518,-500.0,0.00020547,2]
[322010558,1712685065528,-500.0,0.00020547,2]
[322010559,1712685065537,-500.0,0.00020547,2]
[322010560,1712685065547,-512.26,0.00020547,2]
[322010561,1712685065557,-576.45,0.00020547,2]
[322010562,1712685065567,-500.0,0.00020547,2]
[322010563,1712685065576,-500.0,0.00020547,2]
[322010564,1712685065586,-500.0,0.00020547,2]
[322010565,1712685065596,-500.0,0.00020547,2]
[322010566,1712685065606,-500.0,0.00020547,2]
[322010567,1712685065616,-637.05,0.00020547,2]
[322010568,1712685065626,-500.0,0.00020547,2]
[322010569,1712685065636,-500.0,0.00020547,2]
[322010570,1712685065646,-500.0,0.00020547,2]
[322010571,1712685065655,-500.0,0.00020547,2]
[322010572,1712685065665,-500.0,0.00020547,2]
[322010573,1712685065674,-507.5,0.00020547,2]
[322010574,1712685065686,-503.7357369,0.00020547,2]
[322010575,1712685065697,-874.84,0.00020547,2]
[322010576,1712685065706,-500.0,0.00020547,2]
[322010577,1712685065716,-500.0,0.00020547,2]
[322010578,1712685065725,-674.35,0.00020547,2]
[322010579,1712685065735,-500.0,0.00020547,2]
[322010580,1712685065744,-500.0,0.00020547,2]
[322010581,1712685065754,-500.0,0.00020547,2]
[322010582,1712685065763,-500.0,0.00020547,2]
[322010583,1712685065773,-543.33,0.00020547,2]
[322010584,1712685065782,-249.07,0.00020547,2]
[322010585,1712685065792,-500.0,0.00020547,2]
[322010586,1712685065801,-500.0,0.00020547,2]
[322010587,1712685065810,-514.4,0.00020547,2]
[322010588,1712685065820,-590.2737318,0.00020547,2]
[322010589,1712685065829,-617.79,0.00020547,2]
[322010590,1712685065839,-500.0,0.00020547,2]
[322010591,1712685065849,-500.0,0.00020547,2]
[322010592,1712685065858,-500.0,0.00020547,2]
[322010593,1712685065868,-449.90231198,0.00020547,2]
[322010594,1712685065878,-500.0,0.00020547,2]
[322010595,1712685065893,-588.33,0.00020547,2]
[322010596,1712685065903,-150.0,0.00020547,2]
[322010597,1712685065913,-500.0,0.00020547,2]
[322010598,1712685065923,-500.0,0.00020547,2]
[322010599,1712685065935,-500.0,0.00020547,2]
[322010600,1712685065945,-500.0,0.00020547,2]
[322010601,1712685065954,-500.0,0.00020547,2]
[322010602,1712685065965,-500.0,0.00020547,2]
[322010603,1712685065974,-500.0,0.00020547,2]
[322010604,1712685065984,-660.26,0.00020547,2]
[322010605,1712685065993,-500.0,0.00020547,2]
[322010606,1712685066003,-500.0,0.00020547,2]
[322010607,1712685066013,-500.0,0.00020547,2]
[322010608,1712685066023,-500.0,0.00020547,2]
[322010609,1712685066032,-500.0,0.00020547,2]
[322010610,1712685066042,-500.0,0.00020547,2]
[322010611,1712685066051,-500.0,0.00020547,2]
[322010612,1712685066061,-500.0,0.00020547,2]
[322010613,1712685066071,-751.75,0.00020547,2]
[322010614,1712685066080,-500.0,0.00020547,2]
[322010615,1712685066090,-535.9898745,0.00020547,2]
[322010616,1712685066099,-500.0,0.00020547,2]
[322010617,1712685066108,-500.0,0.00020547,2]
[322010618,1712685066118,-500.0,0.00020547,2]
[322010619,1712685066127,-500.0,0.00020547,2]
[322010620,1712685066137,-824.19,0.00020547,2]
[322010621,1712685066146,-500.0,0.00020547,2]
[322010622,1712685066155,-578.6,0.00020547,2]
[322010623,1712685066165,-500.0,0.00020547,2]
[322010624,1712685066174,-539.12,0.00020547,2]
[322010625,1712685066187,-500.0,0.00020547,2]
[322010626,1712685066196,-1414.32,0.00020547,2]
[322010627,1712685066206,-10655.95,0.00020547,2]
[322010628,1712685066216,-723.8,0.00020547,2]
[322010629,1712685066225,-500.0,0.00020547,2]
[322010630,1712685066235,-500.0,0.00020547,2]
[322010631,1712685066245,-500.0,0.00020547,2]
[322010632,1712685066255,-500.0,0.00020547,2]
[322010633,1712685066265,-2205.62,0.00020547,2]
[322010634,1712685066275,-500.0,0.00020547,2]
[322010635,1712685066284,-500.0,0.00020547,2]
[322010636,1712685066294,-500.0,0.00020547,2]
[322010637,1712685066304,-570.86,0.00020547,2]
[322010638,1712685066315,-1150.95,0.00020547,2]
[322010639,1712685066325,-2678.53,0.00020547,2]
[322010640,1712685066335,-500.0,0.00020547,2]
[322010641,1712685066344,-517.67,0.00020547,2]
[322010642,1712685066354,-500.0,0.00020547,2]
[322010643,1712685066364,-784.79,0.00020547,2]
[322010644,1712685066374,-1011.06,0.00020547,2]
[322010645,1712685066383,-500.0,0.00020547,2]
[322010646,1712685066393,-500.0,0.00020547,2]
[322010647,1712685066403,-1027.94,0.00020547,2]
[322010648,1712685066413,-2381.21,0.00020547,2]
[322010649,1712685066423,-602.09,0.00020547,2]
[322010650,1712685066438,-153.00170114,0.00020547,2]
[322010651,1712685066449,-500.0,0.00020547,2]
[322010652,1712685066460,-500.0,0.00020547,2]
[322010653,1712685066471,-500.0,0.00020547,2]
[322010654,1712685066482,-627.1,0.00020547,2]
[322010655,1712685066493,-500.0,0.00020547,2]
[322010656,1712685066504,-1356.51,0.00020547,2]
[322010657,1712685066517,-537.58,0.00020547,2]
[322010658,1712685066528,-2357.41,0.00020547,2]
[322010659,1712685066539,-500.0,0.00020547,2]
[322010660,1712685066550,-520.10761571,0.00020547,2]
[322010661,1712685066560,-1094.02,0.00020547,2]
[322010662,1712685066571,-500.0,0.00020547,2]
[322010663,1712685066582,-500.0,0.00020547,2]
[322010664,1712685066593,-1329.41,0.00020547,2]
[322010665,1712685066605,-500.0,0.00020547,2]
[322010666,1712685066616,-500.0,0.00020547,2]
[322010667,1712685066627,-699.13,0.00020547,2]
[322010668,1712685066638,-1056.81,0.00020547,2]
[322010669,1712685066649,-508.82,0.00020547,2]
[322010670,1712685066660,-884.65,0.00020547,2]
[322010671,1712685066670,-759.08,0.00020547,2]
[322010672,1712685066685,-588.43,0.00020547,2]
[322010673,1712685066697,-1585.64,0.00020547,2]
[322010674,1712685066707,-307.09884068,0.00020547,2]
[322010675,1712685066717,-1364.52,0.00020547,2]
[322010676,1712685066726,-7521.25,0.00020547,2]
[322010677,1712685066735,-500.0,0.00020547,2]
[322010678,1712685066743,-16039.16,0.00020547,2]
[322010679,1712685066752,-500.0,0.00020547,2]
[322010680,1712685066760,-1963.21,0.00020547,2]
[322010681,1712685066769,-500.0,0.00020547,2]
[322010682,1712685066778,-1303.8,0.00020547,2]
[322010683,1712685066788,-590.74,0.00020547,2]
[322010684,1712685066798,-1248.85,0.00020547,2]
[322010685,1712685066807,-621.16,0.00020547,2]
[322010686,1712685066817,-817.62,0.00020547,2]
[322010687,1712685066829,-1667.67,0.00020547,2]
[322010688,1712685066840,-529.42,0.00020547,2]
[322010689,1712685066851,-1005.64,0.00020547,2]
[322010690,1712685066862,-1194.08,0.00020547,2]
[322010691,1712685066872,-964.76,0.00020547,2]
[322010692,1712685066882,-516.29,0.00020547,2]
[322010693,1712685066893,-945.1,0.00020547,2]
[322010694,1712685066905,-4307.68,0.00020547,2]
[322010695,1712685066916,-919.69,0.00020547,2]
[322010696,1712685066931,-2377.1,0.00020547,2]
[322010697,1712685066945,-1411.68,0.00020547,2]
[322010698,1712685066957,-1844.01,0.00020547,2]
[322010699,1712685066970,-2659.83,0.00020547,2]
[322010700,1712685066980,-790.69,0.00020547,2]
[322010701,1712685067001,-634.15,0.00020547,2]
[322010702,1712685067013,-567.57,0.00020547,2]
[322010703,1712685067025,-652.12,0.00020547,2]
[322010704,1712685067036,-860.06,0.00020547,2]
[322010705,1712685067046,-500.0,0.00020547,2]
[322010706,1712685067057,-1033.51,0.00020547,2]
[322010707,1712685067067,-1639.1,0.00020547,2]
[322010708,1712685067077,-500.0,0.00020547,2]
[322010709,1712685067095,-500.0,0.00020547,2]
[322010710,1712685067109,-542.36,0.00020547,2]
[322010711,1712685067120,-600.94,0.00020547,2]
[322010712,1712685067136,-1653.76,0.00020547,2]
[322010713,1712685067151,-500.0,0.00020547,2]
[322010714,1712685067161,-859.76,0.00020547,2]
[322010715,1712685067171,-1526.43,0.00020547,2]
[322010716,1712685067184,-2476.75,0.00020547,2]
[322010717,1712685067194,-768.52,0.00020547,2]
[322010718,1712685067204,-526.17,0.00020547,2]
[322010719,1712685067215,-562.79,0.00020547,2]
[322010720,1712685067225,-880.1,0.00020547,2]
[322010721,1712685067239,-4197.48,0.00020547,2]
[322010722,1712685067258,-500.0,0.00020547,2]
[322010723,1712685067269,-2260.95,0.00020547,2]
[322010724,1712685067279,-740.93,0.00020547,2]
[322010725,1712685067289,-1302.06,0.00020547,2]
[322010726,1712685067308,-500.0,0.00020547,2]
[322010727,1712685067318,-1747.82,0.00020547,2]
[322010728,1712685067341,-867.95,0.00020547,2]
[322010729,1712685067352,-500.0,0.00020547,2]
[322010730,1712685067362,-891.79,0.00020547,2]
[322010731,1712685067373,-751.58,0.00020547,2]
[322010732,1712685067383,-500.0,0.00020547,2]
[322010733,1712685067392,-500.0,0.00020547,2]
[322010734,1712685067402,-500.0,0.00020547,2]
[322010735,1712685067411,-1178.22,0.00020547,2]
[322010736,1712685067421,-5939.73,0.00020547,2]
[322010737,1712685067432,-926.84,0.00020547,2]
[322010738,1712685067442,-644.83,0.00020547,2]
[322010739,1712685067452,-500.0,0.00020547,2]
[322010740,1712685067462,-500.0,0.00020547,2]
[322010741,1712685067473,-500.0,0.00020547,2]
[322010742,1712685067483,-4541.37,0.00020547,2]
[322010743,1712685067494,-2446.07,0.00020547,2]
[322010744,1712685067503,-730.21,0.00020547,2]
[322010745,1712685067513,-3555.59,0.00020547,2]
[322010746,1712685067523,-1004.65,0.00020547,2]
[322010747,1712685067534,-668.41,0.00020547,2]
[322010748,1712685067544,-1371.67,0.00020547,2]
[322010749,1712685067555,-500.0,0.00020547,2]
[322010750,1712685067565,-500.0,0.00020547,2]
[322010751,1712685067574,-500.0,0.00020547,2]
[322010752,1712685067584,-800.77,0.00020547,2]
[322010753,1712685067594,-500.0,0.00020547,2]
[322010754,1712685067604,-2156.03,0.00020547,2]
[322010755,1712685067613,-500.0,0.00020547,2]
[322010756,1712685067623,-1178.1,0.00020547,2]
[322010757,1712685067636,-643.3,0.00020547,2]
[322010758,1712685067646,-513.42,0.00020547,2]
[322010759,1712685067655,-1251.88,0.00020547,2]
[322010760,1712685067666,-547.02,0.00020547,2]
[322010761,1712685067676,-9335.45,0.00020547,2]
[322010762,1712685067690,-804.55,0.00020547,2]
[322010763,1712685067701,-5598.87,0.00020547,2]
[322010764,1712685067710,-500.0,0.00020547,2]
[322010765,1712685067719,-1059.63,0.00020547,2]
[322010766,1712685067729,-672.74,0.00020547,2]
[322010767,1712685067738,-347.19,0.00020547,2]
[322010768,1712685067749,-500.0,0.00020547,2]
[322010769,1712685067758,-500.0,0.00020547,2]
[322010770,1712685067768,-794.34,0.00020547,2]
[322010771,1712685067777,-1184.09,0.00020547,2]
[322010772,1712685067787,-500.0,0.00020547,2]
[322010773,1712685067797,-731.57,0.00020547,2]
[322010774,1712685067807,-878.03,0.00020547,2]
[322010775,1712685067817,-837.95,0.00020547,2]
[322010776,1712685067826,-1088.76,0.00020547,2]
[322010777,1712685067836,-560.92,0.00020547,2]
[322010778,1712685067846,-1646.97,0.00020547,2]
[322010779,1712685067856,-618.92,0.00020547,2]
[322010780,1712685067866,-703.24,0.00020547,2]
[322010781,1712685067877,-1497.53,0.00020547,2]
[322010782,1712685067889,-500.0,0.00020547,2]
[322010783,1712685067898,-764.82,0.00020547,2]
[322010784,1712685067907,-1481.94,0.00020547,2]
[322010785,1712685067916,-1030.94,0.00020547,2]
[322010786,1712685067926,-500.0,0.00020547,2]
[322010787,1712685067937,-354.71297351,0.00020547,2]
[322010788,1712685067947,-1348.64,0.00020547,2]
[322010789,1712685067955,-500.0,0.00020547,2]
[322010790,1712685067964,-500.0,0.00020547,2]
[322010791,1712685067973,-718.64,0.00020547,2]
[322010792,1712685067983,-500.0,0.00020547,2]
[322010793,1712685067992,-500.0,0.00020547,2]
[322010794,1712685068001,-684.88,0.00020547,2]
[322010795,1712685068010,-500.0,0.00020547,2]
[322010796,1712685068019,-1423.87,0.00020547,2]
[322010797,1712685068029,-183.44,0.00020547,2]
[322010798,1712685068038,-886.66,0.00020547,2]
[322010799,1712685068048,-500.0,0.00020547,2]
[322010800,1712685068056,-500.0,0.00020547,2]
[322010801,1712685068066,-500.0,0.00020547,2]
[322010802,1712685068075,-500.0,0.00020547,2]
[322010803,1712685068084,-1369.54,0.00020547,2]
[322010804,1712685068094,-500.0,0.00020547,2]
[322010805,1712685068103,-1513.26,0.00020547,2]
[322010806,1712685068112,-500.0,0.00020547,2]
[322010807,1712685068122,-1078.79,0.00020547,2]
[322010808,1712685068131,-1135.58,0.00020547,2]
[322010809,1712685068140,-3637.63,0.00020547,2]
[322010810,1712685068150,-975.77,0.00020547,2]
[322010811,1712685068161,-500.0,0.00020547,2]
[322010812,1712685068170,-719.06,0.00020547,2]
[322010813,1712685068182,-613.65,0.00020547,2]
[322010814,1712685068192,-500.0,0.00020547,2]
[322010815,1712685068202,-500.0,0.00020547,2]
[322010816,1712685068211,-4161.63,0.00020547,2]
[322010817,1712685068220,-500.0,0.00020547,2]
[322010818,1712685068230,-500.0,0.00020547,2]
[322010819,1712685068240,-508.36,0.00020547,2]
[322010820,1712685068249,-1872.54,0.00020547,2]
[322010821,1712685068259,-2607.78,0.00020547,2]
[322010822,1712685068269,-500.0,0.00020547,2]
[322010823,1712685068278,-743.78,0.00020547,2]
[322010824,1712685068288,-351.44,0.00020547,2]
[322010825,1712685068298,-500.0,0.00020547,2]
[322010826,1712685068307,-172.9,0.00020548,2]
[322010827,1712685068317,-200.0,0.0002055,2]
[322010828,1712685068326,-1000.0,0.0002055,2]
[322010829,1712685068336,-500.0,0.0002055,2]
[322010830,1712685068345,-500.0,0.0002055,2]
[322010831,1712685068355,-200.0,0.0002055,2]
[322010832,1712685068364,-1605.76747325,0.00020568,2]
[322010833,1712685068375,-156.22455142,0.00020598,2]
[322010834,1712685068384,-1101428.59378878,0.000206,3]
[322010835,1712685068394,-517.62,0.000206,2]
[322010836,1712685068403,-15095.7671179,0.00020641,2]
[322010837,1712685068413,-3760.94825741,0.00020641,2]
[322010838,1712685068422,-156.90567095,0.00020657,2]
[322010839,1712685068433,-5572.90028845,0.00020718,2]
[322010840,1712685068443,-311.56462363,0.00020721,2]
[322010841,1712685068452,-1602.750905,0.000208,2]
[322010842,1712685068462,-2404.126357,0.000208,2]
[322010843,1712685068472,-3205.50181,0.000208,2]
[322010844,1712685068482,-4006.877262,0.000208,2]
[322010845,1712685068492,-5609.628167,0.000208,2]
[322010846,1712685068502,-23283.26082031,0.00020819,2]
[322010847,1712685068511,-261.60041953,0.00020819,2]
[322010848,1712685068521,-1613.57421944,0.00020819,2]
[322010849,1712685068531,-214.91323373,0.00020819,2]
[322010850,1712685068541,-395.64639746,0.00020819,2]
[322010851,1712685068550,-155.42857161,0.00020819,2]
[322010852,1712685068561,-155.0,0.00020819,2]
[322010853,1712685068570,-155.14864062,0.00020819,2]
[322010854,1712685068581,-301.80323021,0.00020819,2]
[322010855,1712685068591,-500.0,0.00020821,2]
[322010856,1712685068600,-500.0,0.00020821,2]
[322010857,1712685068609,-500.0,0.00020821,2]
[322010858,1712685068618,-500.0,0.00020821,2]
[322010859,1712685068628,-500.0,0.00020821,2]
[322010860,1712685068638,-679.14,0.00020821,2]
[322010861,1712685068647,-500.0,0.00020821,2]
[322010862,1712685068657,-500.0,0.00020821,2]
[322010863,1712685068666,-500.0,0.00020821,2]
[322010864,1712685068676,-500.0,0.00020821,2]
[322010865,1712685068687,-508.26,0.00020821,2]
[322010866,1712685068697,-684.14,0.00020821,2]
[322010867,1712685068707,-633.57,0.00020821,2]
[322010868,1712685068716,-500.0,0.00020821,2]
[322010869,1712685068726,-500.0,0.00020821,2]
[322010870,1712685068735,-500.0,0.00020821,2]
[322010871,1712685068747,-500.0,0.00020821,2]
[322010872,1712685068756,-575.47,0.00020821,2]
[322010873,1712685068766,-500.0,0.00020821,2]
[322010874,1712685068777,-592.54,0.00020821,2]
[322010875,1712685068787,-500.0,0.00020821,2]
[322010876,1712685068802,-500.0,0.00020821,2]
[322010877,1712685068812,-186.84217884,0.00020821,2]
[322010878,1712685068822,-524.99,0.00020821,2]
[322010879,1712685068834,-500.0,0.00020821,2]
[322010880,1712685068844,-752.81,0.00020821,2]
[322010881,1712685068854,-500.0,0.00020821,2]
[322010882,1712685068864,-500.0,0.00020821,2]
[322010883,1712685068873,-500.0,0.00020821,2]
[322010884,1712685068903,-500.0,0.00020821,2]
[322010885,1712685068923,-649.11,0.00020821,2]
[322010886,1712685068941,-500.0,0.00020821,2]
[322010887,1712685068950,-500.0,0.00020821,2]
[322010888,1712685068960,-500.0,0.00020821,2]
[322010889,1712685068985,-530.71,0.00020821,2]
[322010890,1712685068996,-500.0,0.00020821,2]
[322010891,1712685069007,-551.47,0.00020821,2]
[322010892,1712685069016,-500.0,0.00020821,2]
[322010893,1712685069026,-584.11,0.00020821,2]
[322010894,1712685069035,-703.73,0.00020821,2]
[322010895,1712685069046,-500.0,0.00020821,2]
[322010896,1712685069063,-500.0,0.00020821,2]
[322010897,1712685069072,-500.0,0.00020821,2]
[322010898,1712685069083,-500.0,0.00020821,2]
[322010899,1712685069093,-500.0,0.00020821,2]
[322010900,1712685069103,-500.0,0.00020821,2]
[322010901,1712685069239,-500.0,0.00020821,2]
[322010902,1712685069249,-500.0,0.00020821,2]
[322010903,1712685069260,-500.0,0.00020821,2]
[322010904,1712685069269,-500.0,0.00020821,2]
[322010905,1712685069279,-608.99,0.00020821,2]
[322010906,1712685069289,-973.81,0.00020821,2]
[322010907,1712685069307,-500.0,0.00020821,2]
[322010908,1712685069321,-500.0,0.00020821,2]
[322010909,1712685069339,-500.0,0.00020821,2]
[322010910,1712685069350,-512.26,0.00020821,2]
[322010911,1712685069361,-576.45,0.00020821,2]
[322010912,1712685069371,-500.0,0.00020821,2]
[322010913,1712685069381,-500.0,0.00020821,2]
[322010914,1712685069391,-500.0,0.00020821,2]
[322010915,1712685069407,-500.0,0.00020821,2]
[322010916,1712685069417,-500.0,0.00020821,2]
[322010917,1712685069427,-637.05,0.00020821,2]
[322010918,1712685069440,-500.0,0.00020821,2]
[322010919,1712685069450,-500.0,0.00020821,2]
[322010920,1712685069460,-500.0,0.00020821,2]
[322010921,1712685069471,-500.0,0.00020821,2]
[322010922,1712685069480,-500.0,0.00020821,2]
[322010923,1712685069490,-507.5,0.00020821,2]
[322010924,1712685069500,-874.84,0.00020821,2]
[322010925,1712685069509,-500.0,0.00020821,2]
[322010926,1712685069519,-500.0,0.00020821,2]
[322010927,1712685069528,-674.35,0.00020821,2]
[322010928,1712685069538,-500.0,0.00020821,2]
[322010929,1712685069547,-500.0,0.00020821,2]
[322010930,1712685069557,-500.0,0.00020821,2]
[322010931,1712685069567,-500.0,0.00020821,2]
[322010932,1712685069576,-543.33,0.00020821,2]
[322010933,1712685069586,-500.0,0.00020821,2]
[322010934,1712685069596,-199.09792234,0.00020821,2]
[322010935,1712685069606,-514.4,0.00020821,2]
[322010936,1712685069616,-617.79,0.00020821,2]
[322010937,1712685069626,-500.0,0.00020821,2]
[322010938,1712685069635,-500.0,0.00020821,2]
[322010939,1712685069645,-500.0,0.00020821,2]
[322010940,1712685069655,-252.81167884,0.00020821,2]
[322010941,1712685069671,-588.33,0.00020821,2]
[322010942,1712685069688,-150.0,0.00020821,2]
[322010943,1712685069705,-500.0,0.00020821,2]
[322010944,1712685069717,-500.0,0.00020821,2]